bitfinex-derivatives/quotes_SOLF0:USTF0_20240905
["timestamp","ask_amount","ask_price","bid_price","bid_amount"]
[1725522420302,3.7584,133.04,133.03,0.04975248]
[1725522422702,3.7596,133.0,132.96,1.3142]
[1725522423004,9.23,133.02,132.96,10.5442]
[1725522423196,9.23,133.02,132.97,3.74238487]
[1725522424003,3.81243174,133.01,132.98,0.05223315]
[1725522425204,3.7596,133.0,132.98,0.05223315]
[1725522425802,3.7598,132.99,132.98,0.05223315]
[1725522427807,9.23,133.0,132.93,3.7615]
[1725522427997,9.23,132.98,132.93,3.7615]
[1725522428301,9.23,132.98,132.9,1.3234]
[1725522428501,9.23,132.98,132.92,12.9917]
[1725522429000,3.81450596,132.96,132.94,0.02917084]
[1725522429401,3.761,132.95,132.94,0.02917084]
[1725522436911,3.81440596,132.96,132.94,0.02917084]
[1725522437212,0.05360596,132.96,132.94,0.02917084]
[1725522441813,3.81450596,132.96,132.94,0.02917084]
[1725522446220,0.05360596,132.96,132.94,0.02917084]
[1725522446514,0.05360596,132.96,132.95,3.79542878]
[1725522447017,0.05360596,132.96,132.95,7.55642878]
[1725522447409,0.05360596,132.96,132.95,3.761]
[1725522447606,0.05360596,132.96,132.94,3.79027084]
[1725522450616,0.05360596,132.96,132.94,0.02917084]
[1725522451413,3.81450596,132.96,132.94,0.02917084]
[1725522454827,3.761,132.95,132.94,0.02917084]
[1725522455120,0.05360596,132.96,132.94,0.02917084]
[1725522455919,3.761,132.95,132.94,0.02917084]
[1725522457019,3.81440596,132.96,132.94,0.02917084]
[1725522457823,3.761,132.95,132.94,0.02917084]
[1725522469239,3.81440596,132.96,132.94,0.02917084]
[1725522469846,3.761,132.95,132.94,0.02917084]
[1725522470546,3.81440596,132.96,132.94,0.02917084]
[1725522471648,3.761,132.95,132.94,0.02917084]
[1725522472245,0.05360596,132.96,132.94,0.02917084]
[1725522474443,3.81450596,132.96,132.94,0.02917084]
[1725522475146,3.761,132.95,132.94,0.02917084]
[1725522475650,3.81440596,132.96,132.94,0.02917084]
[1725522476548,0.05360596,132.96,132.94,0.02917084]
[1725522476950,3.81440596,132.96,132.94,0.02917084]
[1725522477649,0.05360596,132.96,132.94,0.02917084]
[1725522477858,3.761,132.95,132.94,0.02917084]
[1725522480048,3.81450596,132.96,132.94,0.02917084]
[1725522482764,3.761,132.95,132.94,0.02917084]
[1725522485959,12.991,132.95,132.94,0.02917084]
[1725522493261,3.761,132.95,132.94,0.02917084]
[1725522493457,3.7623,132.91,132.88,3.7629]
[1725522494359,3.7623,132.91,132.86,11.9681]
[1725522494360,3.7629,132.89,132.86,3.7634]
[1725522494663,12.9929,132.89,132.86,3.7634]
[1725522495761,3.7629,132.89,132.86,3.7634]
[1725522496167,9.23,132.9,132.86,3.7634]
[1725522496460,21.80624882,132.99,132.88,9.23]
[1725522496665,9.23,132.96,132.91,9.23]
[1725522496966,12.9908,132.96,132.92,3.7616]
[1725522497358,12.9909,132.96,132.92,3.7616]
[1725522497564,0.04888121,132.95,132.93,3.81499199]
[1725522498262,0.04888121,132.95,132.93,0.05369199]
[1725522499655,0.04888121,132.95,132.93,9.28369199]
[1725522500164,0.04888121,132.95,132.93,13.00001542]
[1725522500360,0.04888121,132.95,132.94,3.7612]
[1725522503565,0.04888121,132.95,132.93,0.05369199]
[1725522504174,0.04888121,132.95,132.93,3.81509199]
[1725522504461,0.04888121,132.95,132.93,13.04509199]
[1725522505267,0.04888121,132.95,132.94,3.7612]
[1725522506370,0.04888121,132.95,132.93,3.81499199]
[1725522509364,3.7612,132.94,132.93,0.05369199]
[1725522511773,13.03998121,132.95,132.93,0.05369199]
[1725522515970,3.80998121,132.95,132.93,0.05369199]
[1725522517475,0.04888121,132.95,132.93,3.81519199]
[1725522517778,0.04888121,132.95,132.93,0.05369199]
[1725522518078,0.04888121,132.95,132.94,3.7612]
[1725522529577,0.04888121,132.95,132.93,0.05369199]
[1725522529972,0.04888121,132.95,132.93,3.81499199]
[1725522532585,0.04888121,132.95,132.93,13.04499199]
[1725522533290,0.04888121,132.95,132.94,3.7612]
[1725522534782,0.04888121,132.95,132.93,9.28369199]
[1725522534990,0.04888121,132.95,132.93,13.04509199]
[1725522535190,0.04888121,132.95,132.93,0.05369199]
[1725522536080,3.80998121,132.95,132.93,0.05369199]
[1725522542805,0.04888121,132.95,132.93,3.81509199]
[1725522543203,0.04888121,132.95,132.93,0.05369199]
[1725522545006,3.80998121,132.95,132.93,0.05369199]
[1725522546000,0.04888121,132.95,132.93,0.05369199]
[1725522547007,0.04888121,132.95,132.93,3.81519199]
[1725522548912,3.80988121,132.95,132.93,0.05369199]
[1725522549801,0.04888121,132.95,132.93,3.81519199]
[1725522554911,0.04888121,132.95,132.94,3.7612]
[1725522555114,0.04888121,132.95,132.94,12.9912]
[1725522555410,0.04888121,132.95,132.94,16.83582001]
[1725522557910,0.04888121,132.95,132.94,3.7612]
[1725522558110,0.04888121,132.95,132.93,0.05369199]
[1725522558111,0.04888121,132.95,132.93,3.81499199]
[1725522564712,0.04888121,132.95,132.93,0.05369199]
[1725522565011,0.04888121,132.95,132.87,5.05526683]
[1725522565012,9.23,132.94,132.87,5.05526683]
[1725522565217,3.762,132.92,132.88,3.7628]
[1725522566019,0.0578094,132.91,132.88,3.7628]
[1725522568414,3.7624,132.9,132.87,3.7631]
[1725522568825,0.0578094,132.91,132.87,3.75921978]
[1725522569027,0.0578094,132.91,132.88,9.23]
[1725522569220,3.8200094,132.91,132.88,9.23]
[1725522570221,3.8200094,132.91,132.88,12.9929]
[1725522571620,0.0578094,132.91,132.88,12.9929]
[1725522571821,0.0578094,132.91,132.89,12.9926]
[1725522572025,0.0578094,132.91,132.89,3.7626]
[1725522574328,0.0578094,132.91,132.88,7.49652172]
[1725522575628,0.0578094,132.91,132.89,3.7626]
[1725522579730,0.0578094,132.91,132.9,3.7624]
[1725522586735,0.0578094,132.91,132.89,9.23]
[1725522587248,0.0578094,132.91,132.89,12.9925]
[1725522588643,0.0578094,132.91,132.89,3.7625]
[1725522591340,9.2878094,132.91,132.8,3.71218961]
[1725522591639,9.2878094,132.91,132.84,9.23]
[1725522591640,9.23,132.9,132.84,9.23]
[1725522591845,3.75272782,132.93,132.84,9.23]
[1725522591846,0.05240877,132.88,132.84,9.23]
[1725522592045,0.05240877,132.88,132.85,3.7637]
[1725522592434,0.05240877,132.88,132.86,3.7635]
[1725522592745,0.05240877,132.88,132.87,9.23]
[1725522592945,0.05240877,132.88,132.87,13.03044022]
[1725522593139,0.05240877,132.88,132.87,16.79364022]
[1725522594146,0.05240877,132.88,132.87,16.68560473]
[1725522596744,0.05240877,132.88,132.87,7.45560473]
[1725522596941,0.05240877,132.88,132.87,16.68560473]
[1725522597143,0.05240877,132.88,132.87,7.45560473]
[1725522599540,0.05240877,132.88,132.87,16.68560473]
[1725522599744,0.05240877,132.88,132.81,2.8172]
[1725522599941,0.05240877,132.88,132.83,9.23]
[1725522600142,3.81540877,132.88,132.84,7.44663794]
[1725522600754,0.05240877,132.88,132.84,3.68263794]
[1725522601146,0.05240877,132.88,132.81,2.8172]
[1725522601356,0.05240877,132.88,132.81,6.58488558]
[1725522601357,9.28240877,132.88,132.81,6.58488558]
[1725522601551,9.23,132.87,132.81,3.76768558]
[1725522601751,0.05244525,132.85,132.8,9.23]
[1725522602052,0.05244525,132.85,132.74,2.6944]
[1725522602354,9.23,132.87,132.8,9.23]
[1725522602355,0.05385288,132.81,132.8,9.23]
[1725522602662,0.05727486,132.82,132.8,13.05067304]
[1725522602845,0.05673789,132.82,132.8,13.05067304]
[1725522603449,0.05673789,132.82,132.8,16.81587304]
[1725522604547,0.05673789,132.82,132.81,3.7649]
[1725522604749,0.05673789,132.82,132.81,12.9949]
[1725522605254,0.05673789,132.82,132.81,16.67044257]
[1725522607159,0.05673789,132.82,132.81,7.44044257]
[1725522609255,0.05673789,132.82,132.8,12.9951]
[1725522609659,0.05673789,132.82,132.81,3.74209103]
[1725522610558,0.05673789,132.82,132.81,12.9949]
[1725522610752,0.05673789,132.82,132.81,16.82434917]
[1725522610957,9.23,132.9,132.81,9.23]
[1725522611156,3.7629,132.89,132.85,9.23]
[1725522611957,0.04763304,132.88,132.86,3.83700825]
[1725522613055,0.04763304,132.88,132.87,3.7632]
[1725522613259,0.04763304,132.88,132.87,16.83165968]
[1725522614856,7.7275,132.93,132.87,16.83165968]
[1725522614857,3.7617,132.93,132.88,3.7627]
[1725522615060,3.7617,132.93,132.89,9.23]
[1725522615767,3.7617,132.93,132.89,12.9925]
[1725522615970,0.05567153,132.92,132.9,0.05270001]
[1725522616169,0.05567153,132.92,132.9,9.28270001]
[1725522616469,0.05567153,132.92,132.91,3.7621]
[1725522616659,0.05567153,132.92,132.91,12.9921]
[1725522616967,1.4094,132.98,132.91,9.23]
[1725522617168,9.23,133.0,132.94,9.23]
[1725522617471,13.06374175,133.0,132.95,3.8559478]
[1725522617767,9.23,133.0,132.94,9.23]
[1725522617967,0.05453759,132.98,132.96,0.04808301]
[1725522619164,3.81463759,132.98,132.96,0.04808301]
[1725522620479,3.7604,132.97,132.96,0.04808301]
[1725522621881,12.9904,132.97,132.96,0.04808301]
[1725522624386,3.7604,132.97,132.96,0.04808301]
[1725522624981,3.81483759,132.98,132.96,0.04808301]
[1725522627890,0.05453759,132.98,132.96,0.04808301]
[1725522629590,0.05453759,132.98,132.96,3.80878301]
[1725522633392,0.05453759,132.98,132.96,0.04808301]
[1725522633393,3.81463759,132.98,132.96,0.04808301]
[1725522639101,0.05453759,132.98,132.96,0.04808301]
[1725522641895,3.81473759,132.98,132.96,0.04808301]
[1725522642798,3.7604,132.97,132.96,0.04808301]
[1725522646799,96.3976362,133.01,132.96,0.04808301]
[1725522646800,9.15355312,133.05,132.96,9.27808301]
[1725522647099,4.0043,133.08,133.01,9.23]
[1725522647295,3.7584,133.05,133.01,9.23]
[1725522647905,3.81556109,133.04,133.02,0.05182384]
[1725522648098,3.81289076,133.04,133.02,0.04765753]
[1725522649099,3.7587,133.03,133.02,0.04765753]
[1725522649905,3.81279076,133.04,133.02,0.04765753]
[1725522650106,0.05429076,133.04,133.02,0.04765753]
[1725522651296,3.81279076,133.04,133.02,0.04765753]
[1725522651996,0.05429076,133.04,133.03,9.23]
[1725522652402,0.05429076,133.04,133.03,12.9887]
[1725522653300,0.05429076,133.04,133.02,13.03655753]
[1725522653508,0.05429076,133.04,133.02,9.27765753]
[1725522655605,0.05429076,133.04,133.02,0.04765753]
[1725522657199,3.7587,133.03,133.02,0.04765753]
[1725522663905,9.23,133.03,132.86,67.66236836]
[1725522664207,9.23,133.01,132.93,9.23]
[1725522664508,3.7606,132.97,132.93,12.9913]
[1725522664907,0.05591852,132.96,132.94,0.04798291]
[1725522666907,9.23,132.95,132.74,234.20521473]
[1725522667109,9.23,132.92,132.86,9.23]
[1725522667908,9.23,132.92,132.88,0.05623461]
[1725522667909,0.04966743,132.9,132.88,0.05623461]
[1725522668410,0.04966743,132.9,132.89,9.23]
[1725522668910,0.04966743,132.9,132.89,12.9926]
[1725522669214,3.761,132.95,132.89,9.23]
[1725522669410,3.761,132.95,132.92,9.23]
[1725522670010,3.81462974,132.95,132.92,9.28069528]
[1725522670409,0.05362974,132.95,132.92,0.05069528]
[1725522671610,3.7612,132.94,132.92,0.05069528]
[1725522675128,3.7615,132.93,132.92,0.05069528]
[1725522677224,3.7625,132.9,132.86,12.9933]
[1725522678022,3.7625,132.9,132.87,3.7632]
[1725522678418,3.81135413,132.9,132.87,0.04997281]
[1725522678618,3.7627,132.89,132.87,0.04997281]
[1725522681527,3.7626,132.89,132.87,0.04997281]
[1725522682730,3.7626,132.89,132.87,9.27997281]
[1725522683423,0.04885413,132.9,132.87,9.27997281]
[1725522683424,3.81135413,132.9,132.87,9.27997281]
[1725522684022,3.81135413,132.9,132.87,13.04317281]
[1725522684232,3.7627,132.89,132.87,9.27997281]
[1725522686026,3.81125413,132.9,132.87,9.27997281]
[1725522687231,3.81125413,132.9,132.87,13.04317281]
[1725522688132,0.04885413,132.9,132.87,16.88397838]
[1725522689325,0.04885413,132.9,132.88,9.23]
[1725522689834,0.04885413,132.9,132.89,3.7626]
[1725522695637,3.7617,132.93,132.9,3.7623]
[1725522696742,0.05432535,132.93,132.9,3.81615053]
[1725522696939,0.05432535,132.93,132.9,13.04615053]
[1725522700443,3.7618,132.92,132.9,0.05385053]
[1725522701046,3.81582535,132.93,132.9,3.81615053]
[1725522704349,0.05432535,132.93,132.9,3.81615053]
[1725522704752,0.05432535,132.93,132.91,9.23]
[1725522705246,0.05432535,132.93,132.91,3.762]
[1725522706957,0.05432535,132.93,132.9,0.05385053]
[1725522707451,9.28432535,132.93,132.9,0.05385053]
[1725522707642,3.7621,132.91,132.9,0.05385053]
[1725522709655,3.7618,132.92,132.9,0.05385053]
[1725522712747,3.81592535,132.93,132.9,3.81615053]
[1725522714552,0.05432535,132.93,132.91,12.9921]
[1725522715054,0.05432535,132.93,132.92,3.7618]
[1725522719049,0.05432535,132.93,132.92,12.9918]
[1725522719651,3.7603,132.98,132.94,12.991]
[1725522719856,2.7108,133.0,132.94,12.95036597]
[1725522720060,2.7108,133.0,132.95,9.23]
[1725522720558,0.0562846,132.99,132.96,0.05687471]
[1725522721354,3.8161846,132.99,132.96,3.81747471]
[1725522721858,3.8161846,132.99,132.96,0.05687471]
[1725522722758,3.7602,132.98,132.96,0.05687471]
[1725522723265,9.23,132.98,132.96,0.05687471]
[1725522723559,3.7604,132.97,132.96,0.05687471]
[1725522728555,0.0562846,132.99,132.96,0.05687471]
[1725522728755,0.0562846,132.99,132.97,9.23]
[1725522728963,0.0562846,132.99,132.98,9.23]
[1725522729462,0.0562846,132.99,132.98,12.9901]
[1725522736173,3.7583,133.05,133.01,12.9891]
[1725522736875,3.7579,133.06,133.02,3.7589]
[1725522737071,0.04843896,133.05,133.02,3.7589]
[1725522737275,0.04843896,133.05,133.03,0.04798096]
[1725522737475,3.80673896,133.05,133.03,0.04798096]
[1725522740482,0.04843896,133.05,133.03,9.27798096]
[1725522741074,0.04843896,133.05,133.04,3.7584]
[1725522744080,0.04843896,133.05,133.03,3.80648096]
[1725522744879,3.80663896,133.05,133.03,0.04798096]
[1725522745482,0.04843896,133.05,133.03,0.04798096]
[1725522746883,0.04843896,133.05,133.03,9.27798096]
[1725522747585,0.04843896,133.05,133.03,13.03648096]
[1725522748790,3.80663896,133.05,133.03,0.04798096]
[1725522750890,0.04843896,133.05,133.03,0.04798096]
[1725522751090,0.04843896,133.05,133.03,13.03668096]
[1725522753690,0.04843896,133.05,133.04,3.7584]
[1725522753888,0.04843896,133.05,133.04,12.9884]
[1725522761397,3.80673896,133.05,133.03,0.04798096]
[1725522761692,0.04843896,133.05,133.03,0.04798096]
[1725522762196,0.04843896,133.05,133.03,3.80668096]
[1725522762791,0.04843896,133.05,133.04,9.23]
[1725522764693,0.04843896,133.05,133.04,12.9884]
[1725522780902,0.04843896,133.05,133.03,3.80638096]
[1725522781198,0.04843896,133.05,133.03,13.03638096]
[1725522781902,0.04843896,133.05,133.03,0.04798096]
[1725522782394,3.80673896,133.05,133.03,0.04798096]
[1725522783798,0.04843896,133.05,133.03,9.27798096]
[1725522784904,3.80673896,133.05,133.03,9.27798096]
[1725522785095,3.80673896,133.05,133.03,0.04798096]
[1725522786403,3.7584,133.04,133.03,0.04798096]
[1725522788393,3.80663896,133.05,133.03,9.27798096]
[1725522788597,0.04843896,133.05,133.03,9.27798096]
[1725522791406,3.80653896,133.05,133.03,9.27798096]
[1725522791799,0.04843896,133.05,133.03,9.27798096]
[1725522793611,0.04843896,133.05,133.03,13.03648096]
[1725522796418,3.80673896,133.05,133.03,9.27798096]
[1725522797722,3.7584,133.04,133.03,0.04798096]
[1725522798821,3.80663896,133.05,133.03,0.04798096]
[1725522800324,3.7584,133.04,133.03,0.04798096]
[1725522802918,3.80663896,133.05,133.03,0.04798096]
[1725522803327,0.04843896,133.05,133.03,0.04798096]
[1725522804433,3.80653896,133.05,133.03,0.04798096]
[1725522808335,3.7584,133.04,133.03,0.04798096]
[1725522813440,9.23,133.04,132.97,9.23]
[1725522813642,9.23,133.04,132.97,13.08075187]
[1725522813845,3.7594,133.01,132.97,13.08075187]
[1725522814139,3.7594,133.01,132.98,9.23]
[1725522814344,3.81338771,133.01,132.98,13.04774423]
[1725522815847,0.05398771,133.01,132.98,13.04774423]
[1725522816143,0.05398771,133.01,132.99,3.7598]
[1725522816740,0.05398771,133.01,132.98,13.04784423]
[1725522818042,3.81328771,133.01,132.98,13.04784423]
[1725522820943,3.81328771,133.01,132.98,9.28784423]
[1725522821244,3.7596,133.0,132.98,0.05784423]
[1725522822151,3.7598,132.99,132.98,0.05784423]
[1725522829043,3.7609,132.96,132.91,3.7619]
[1725522829248,9.23,132.98,132.91,9.23]
[1725522830354,3.81364369,132.96,132.93,0.05580975]
[1725522830552,3.81364369,132.96,132.93,9.28580975]
[1725522830749,0.05294369,132.96,132.94,9.23]
[1725522830950,3.71200221,133.03,132.94,9.23]
[1725522831154,12.94200221,133.03,132.97,9.23]
[1725522832048,0.05110588,133.01,132.99,0.04779094]
[1725522832855,3.81060588,133.01,132.99,0.04779094]
[1725522834146,3.7595,133.0,132.99,0.04779094]
[1725522837654,0.05110588,133.01,132.99,3.80759094]
[1725522840960,0.05110588,133.01,132.99,0.04779094]
[1725522841555,3.7595,133.0,132.99,0.04779094]
[1725522844756,3.81040588,133.01,132.99,0.04779094]
[1725522845161,0.05110588,133.01,132.99,3.80759094]
[1725522845666,3.81050588,133.01,132.99,0.04779094]
[1725522845853,9.28110588,133.01,132.99,0.04779094]
[1725522846758,12.9895,133.0,132.99,0.04779094]
[1725522861962,3.7595,133.0,132.99,0.04779094]
[1725522883184,12.9895,133.0,132.99,0.04779094]
[1725522889884,3.7595,133.0,132.99,0.04779094]
[1725522890085,3.81050588,133.01,132.99,0.04779094]
[1725522890385,0.05110588,133.01,132.99,0.04779094]
[1725522892490,3.7595,133.0,132.99,0.04779094]
[1725522893287,3.81040588,133.01,132.99,0.04779094]
[1725522896595,1.3347,133.07,132.99,0.04779094]
[1725522896788,9.23,133.06,133.0,9.23]
[1725522896989,3.7585,133.04,133.01,3.7591]
[1725522897192,3.7585,133.04,133.02,3.7955024]
[1725522897589,3.7582,133.05,133.02,7.5545024]
[1725522897794,3.81339817,133.05,133.02,7.60198416]
[1725522900288,13.04339817,133.05,133.02,3.84298416]
[1725522900686,9.23,133.03,133.02,0.04748176]
[1725522901497,12.9887,133.03,133.02,0.04748176]
[1725522912406,3.7587,133.03,133.02,0.04748176]
[1725522920913,12.9887,133.03,133.02,0.04748176]
[1725522934619,3.7587,133.03,133.02,0.04748176]
[1725522954646,3.7585,133.04,133.02,0.04748176]
[1725522955744,12.9885,133.04,133.02,0.04748176]
[1725522956842,3.81339817,133.05,133.02,3.80628176]
[1725522957045,13.04339817,133.05,133.02,3.80628176]
[1725522957846,3.7584,133.04,133.02,3.80628176]
[1725522959250,3.7584,133.04,133.02,0.04748176]
[1725522965853,12.9884,133.04,133.02,0.04748176]
[1725522966051,0.05519817,133.05,133.02,9.27748176]
[1725522966245,22.56,133.15,133.02,9.27748176]
[1725522966246,9.23,133.09,133.02,9.27748176]
[1725522966447,12.9872,133.09,133.03,9.23]
[1725522966749,9.23,133.09,133.03,9.23]
[1725522966947,9.23,133.09,133.02,3.83676231]
[1725522967252,0.05153159,133.07,133.04,3.80841318]
[1725522968145,0.05153159,133.07,133.05,3.7581]
[1725522969650,0.05153159,133.07,133.04,3.80851318]
[1725522969954,9.23,133.06,133.04,3.80851318]
[1725522971355,12.9879,133.06,133.04,3.80851318]
[1725522971545,9.23,133.05,133.04,0.05021318]
[1725522972155,12.9881,133.05,133.04,0.05021318]
[1725522976755,16.79093174,133.05,133.04,0.05021318]
[1725522979860,3.80283174,133.05,132.98,3.73815389]
[1725522980055,9.23,133.02,132.96,10.5258]
[1725522980254,9.23,133.02,132.96,14.37750702]
[1725522980462,12.9891,133.02,132.99,3.7598]
[1725522980854,13.03718504,133.02,132.99,3.81394796]
[1725522981963,3.80718504,133.02,132.99,3.81394796]
[1725522982661,0.04808504,133.02,133.0,3.7594]
[1725522984062,3.80728504,133.02,132.99,0.05414796]
[1725522984459,3.80728504,133.02,132.99,3.81374796]
[1725522986365,3.80728504,133.02,133.0,3.7595]
[1725522986766,9.23,133.09,133.01,9.23]
[1725522987062,9.23,133.09,133.02,1.3553]
[1725522987265,3.7575,133.08,133.05,3.7581]
[1725522987658,3.7575,133.08,133.05,3.80991492]
[1725522987659,3.80723545,133.08,133.05,3.80991492]
[1725522987858,0.04973545,133.08,133.06,3.7577]
[1725522991368,0.04973545,133.08,133.07,3.7576]
[1725523002166,0.04973545,133.08,133.05,0.05181492]
[1725523002367,3.80713545,133.08,133.05,0.05181492]
[1725523002567,3.80713545,133.08,133.05,3.80981492]
[1725523003467,3.80713545,133.08,133.06,3.7578]
[1725523007366,0.04973545,133.08,133.06,3.7578]
[1725523008672,0.04973545,133.08,133.07,3.7576]
[1725523008873,0.04973545,133.08,133.05,0.05181492]
[1725523009471,0.04973545,133.08,133.06,3.7577]
[1725523011672,3.80703545,133.08,133.05,3.80981492]
[1725523015077,0.04973545,133.08,133.06,3.7577]
[1725523015877,0.04973545,133.08,133.07,3.7576]
[1725523017079,0.04973545,133.08,133.07,12.9876]
[1725523020576,0.04973545,133.08,133.07,3.7576]
[1725523029284,0.04973545,133.08,133.06,3.7577]
[1725523029682,0.04973545,133.08,133.05,9.28181492]
[1725523030083,0.04973545,133.08,133.06,3.7578]
[1725523030383,0.04973545,133.08,133.05,9.28181492]
[1725523031283,0.04973545,133.08,133.05,0.05181492]
[1725523032183,0.04973545,133.08,133.06,3.7576]
[1725523034177,0.04973545,133.08,133.05,0.05181492]
[1725523034178,0.04973545,133.08,133.07,3.7576]
[1725523036986,3.80713545,133.08,133.05,3.80981492]
[1725523037290,0.04973545,133.08,133.05,0.05181492]
[1725523038092,0.04973545,133.08,133.06,3.7576]
[1725523041302,3.80703545,133.08,133.06,3.7576]
[1725523045296,0.04973545,133.08,133.06,3.7576]
[1725523049610,3.80703545,133.08,133.06,3.7576]
[1725523050908,3.7576,133.07,133.05,3.80981492]
[1725523051312,0.04973545,133.08,133.05,3.80981492]
[1725523052013,0.04973545,133.08,133.05,0.05181492]
[1725523052206,9.23,133.07,133.05,0.05181492]
[1725523052714,3.7578,133.06,133.05,0.05181492]
[1725523063914,3.7576,133.07,133.05,0.05181492]
[1725523065319,3.7576,133.07,133.05,3.80991492]
[1725523065519,3.80713545,133.08,133.05,3.80991492]
[1725523071828,0.04973545,133.08,133.06,3.7578]
[1725523072023,0.04973545,133.08,133.05,0.05181492]
[1725523072231,0.04973545,133.08,133.05,9.28181492]
[1725523072724,0.04973545,133.08,133.07,3.7576]
[1725523078535,0.04973545,133.08,133.06,3.7576]
[1725523080634,3.80703545,133.08,133.06,3.7576]
[1725523080837,0.04973545,133.08,133.05,3.80981492]
[1725523081637,3.80713545,133.08,133.05,3.80981492]
[1725523081837,3.80713545,133.08,133.06,3.7578]
[1725523082439,0.04973545,133.08,133.05,0.05181492]
[1725523083940,3.7578,133.07,133.05,0.05181492]
[1725523084938,3.80723545,133.08,133.05,3.80981492]
[1725523085142,0.04973545,133.08,133.05,3.80981492]
[1725523085336,3.7577,133.07,133.05,3.80981492]
[1725523086243,3.7577,133.07,133.05,0.05181492]
[1725523086635,3.7576,133.07,133.05,0.05181492]
[1725523088042,3.7578,133.06,133.05,0.05181492]
[1725523095953,0.04973545,133.08,133.05,3.80991492]
[1725523096542,3.80733545,133.08,133.05,3.80991492]
[1725523097045,0.04973545,133.08,133.05,3.80991492]
[1725523097646,3.7576,133.07,133.05,3.80991492]
[1725523098144,0.04973545,133.08,133.05,3.80991492]
[1725523098340,3.80723545,133.08,133.05,3.80991492]
[1725523104558,3.7576,133.07,133.05,3.80991492]
[1725523109850,0.04973545,133.08,133.05,3.80991492]
[1725523109851,0.04973545,133.08,133.05,0.05181492]
[1725523110051,0.04973545,133.08,133.05,9.28181492]
[1725523111151,0.04973545,133.08,133.07,3.7576]
[1725523114470,0.04973545,133.08,133.07,12.9876]
[1725523120372,0.04973545,133.08,133.07,3.7576]
[1725523120780,0.04973545,133.08,133.07,12.9876]
[1725523139600,1.3642,133.14,133.1,3.7565]
[1725523139801,1.3642,133.14,133.1,16.75369114]
[1725523140001,3.756,133.13,133.1,16.75369114]
[1725523140605,3.80917575,133.13,133.1,16.81122947]
[1725523145706,0.05317575,133.13,133.1,3.81403833]
[1725523145911,3.7563,133.12,133.1,0.05753833]
[1725523148109,3.7564,133.11,133.1,0.05753833]
[1725523159324,1.41857575,133.13,133.1,3.81423833]
[1725523159920,1.41857575,133.13,133.1,0.05753833]
[1725523160624,0.05317575,133.13,133.1,3.81403833]
[1725523161821,3.80917575,133.13,133.1,3.81403833]
[1725523168224,3.7562,133.12,133.1,3.81403833]
[1725523168424,3.7562,133.12,133.1,0.05753833]
[1725523169116,3.80917575,133.13,133.1,3.81423833]
[1725523169821,3.7562,133.12,133.1,3.81423833]
[1725523170626,3.80917575,133.13,133.11,3.7564]
[1725523173326,3.7562,133.12,133.1,3.81413833]
[1725523174619,3.80917575,133.13,133.1,3.81413833]
[1725523181630,3.7562,133.12,133.1,3.81413833]
[1725523182428,3.7562,133.12,133.1,0.05753833]
[1725523182831,3.7561,133.12,133.1,0.05753833]
[1725523184628,3.7564,133.11,133.1,0.05753833]
[1725523190533,3.7562,133.12,133.1,0.05753833]
[1725523190736,3.7562,133.12,133.1,3.81423833]
[1725523191936,3.80917575,133.13,133.1,3.81423833]
[1725523192135,3.80917575,133.13,133.11,9.23]
[1725523194029,0.05317575,133.13,133.12,3.7561]
[1725523194223,0.05317575,133.13,133.12,12.9861]
[1725523198929,0.05317575,133.13,133.11,3.7563]
[1725523199630,0.05317575,133.13,133.12,3.7561]
[1725523200428,0.05317575,133.13,133.1,9.28753833]
[1725523200429,0.05317575,133.13,133.11,3.7563]
[1725523200933,3.80907575,133.13,133.11,3.7564]
[1725523203640,3.80917575,133.13,133.1,0.05753833]
[1725523203839,0.05317575,133.13,133.1,0.05753833]
[1725523205737,0.05317575,133.13,133.11,3.7564]
[1725523208338,0.05317575,133.13,133.12,3.7561]
[1725523210940,0.05317575,133.13,133.1,0.05753833]
[1725523211743,3.80917575,133.13,133.1,3.81413833]
[1725523212936,22.61317575,133.13,133.1,0.05753833]
[1725523214041,0.05317575,133.13,133.1,0.05753833]
[1725523214445,3.7564,133.11,133.1,0.05753833]
[1725523222340,3.7575,133.08,133.03,2.6741]
[1725523222945,3.7575,133.08,133.05,3.758]
[1725523223346,3.80501968,133.08,133.05,3.80876826]
[1725523226162,0.04751968,133.08,133.05,0.05076826]
[1725523226957,3.80491968,133.08,133.05,3.80876826]
[1725523227754,0.04751968,133.08,133.05,0.05076826]
[1725523228564,3.7578,133.06,133.05,0.05076826]
[1725523229865,3.80491968,133.08,133.05,0.05076826]